fUST/lending_fUST_20260101
["ID","MTS","AMOUNT","RATE_DAILY","PERIOD"]
[400256197,1767231042101,-1000.0,0.00021917,2]
[400256198,1767231042110,-500.0,0.00021917,2]
[400256199,1767231042120,-500.0,0.00021917,2]
[400256200,1767231042129,-934.93,0.00021917,2]
[400256201,1767231042139,-1000.0,0.00021917,2]
[400256202,1767231042148,-500.0,0.00021917,2]
[400256203,1767231042158,-500.0,0.00021917,2]
[400256204,1767231042168,-500.0,0.00021917,2]
[400256205,1767231042178,-1441.19,0.00021917,2]
[400256206,1767231042187,-924.08,0.00021917,2]
[400256207,1767231042197,-726.32,0.00021917,2]
[400256208,1767231042206,-4710.53,0.00021917,2]
[400256209,1767231042215,-500.0,0.00021917,2]
[400256210,1767231042225,-500.0,0.00021917,2]
[400256211,1767231042235,-5241.9,0.00021917,2]
[400256212,1767231042245,-500.0,0.00021917,2]
[400256213,1767231042255,-639.79,0.00021917,2]
[400256214,1767231042264,-500.0,0.00021917,2]
[400256215,1767231042273,-1458.32,0.00021917,2]
[400256216,1767231042282,-500.0,0.00021917,2]
[400256217,1767231042292,-759.62,0.00021917,2]
[400256218,1767231042301,-500.0,0.00021917,2]
[400256219,1767231042311,-1163.27,0.00021917,2]
[400256220,1767231042324,-180.1600852,0.00021917,2]
[400256221,1767231042334,-150.0,0.00021917,2]
[400256222,1767231042344,-241.06838405,0.00021917,2]
[400256223,1767231042354,-219.20142378,0.00021917,2]
[400256224,1767231042363,-500.0,0.00021917,2]
[400256225,1767231042373,-500.0,0.00021917,2]
[400256226,1767231042382,-352.49511104,0.00021917,2]
[400256229,1767231043213,-147.50488896,0.00021917,2]
[400256230,1767231043223,-266.67739661,0.00021917,2]
[400256231,1767231043233,-433.0,0.00021968,2]
[400256232,1767231043243,-640.24385345,0.00021983,2]
[400256233,1767231043254,-273.0,0.00022,7]
[400256234,1767231043264,-433.0,0.00022011,2]
[400256235,1767231043275,-151.0,0.00022047,2]
[400256236,1767231043284,-433.0,0.00022137,2]
[400256237,1767231043293,-500.0,0.00022191,2]
[400256238,1767231043303,-500.0,0.00022191,2]
[400256239,1767231043312,-500.0,0.00022191,2]
[400256240,1767231043326,-22.40169489,0.00022191,2]
[400256241,1767231043337,-613.90751972,0.00022191,2]
[400256242,1767231043346,-722.66,0.00022191,2]
[400256243,1767231043356,-924.08865171,0.00022191,2]
[400256244,1767231043365,-500.0,0.00022191,2]
[400256245,1767231043374,-500.0,0.00022191,2]
[400256246,1767231043383,-934.93,0.00022191,2]
[400256247,1767231043393,-1000.0,0.00022191,2]
[400256248,1767231043402,-500.0,0.00022191,2]
[400256249,1767231043412,-500.0,0.00022191,2]
[400256250,1767231043421,-500.0,0.00022191,2]
[400256251,1767231043431,-1441.19,0.00022191,2]
[400256252,1767231043440,-924.08,0.00022191,2]
[400256253,1767231043449,-726.32,0.00022191,2]
[400256254,1767231043459,-4710.53,0.00022191,2]
[400256255,1767231043468,-500.0,0.00022191,2]
[400256256,1767231043477,-500.0,0.00022191,2]
[400256257,1767231043487,-5241.9,0.00022191,2]
[400256258,1767231043496,-500.0,0.00022191,2]
[400256259,1767231043505,-639.79,0.00022191,2]
[400256260,1767231043516,-500.0,0.00022191,2]
[400256261,1767231043534,-1458.32,0.00022191,2]
[400256262,1767231043543,-500.0,0.00022191,2]
[400256263,1767231043552,-759.62,0.00022191,2]
[400256264,1767231043562,-500.0,0.00022191,2]
[400256265,1767231043571,-1163.27,0.00022191,2]
[400256266,1767231043580,-500.0,0.00022191,2]
[400256267,1767231043590,-500.0,0.00022191,2]
[400256268,1767231043599,-500.0,0.00022191,2]
[400256269,1767231043608,-2311.79036029,0.00022315,2]
[400256270,1767231043617,-500.0,0.00022465,2]
[400256271,1767231043626,-500.0,0.00022465,2]
[400256272,1767231043635,-500.0,0.00022465,2]
[400256273,1767231043644,-722.66,0.00022465,2]
[400256274,1767231043654,-500.0,0.00022465,2]
[400256275,1767231043663,-500.0,0.00022465,2]
[400256276,1767231043672,-934.93,0.00022465,2]
[400256277,1767231043682,-1000.0,0.00022465,2]
[400256278,1767231043691,-500.0,0.00022465,2]
[400256279,1767231043806,-500.0,0.00022465,2]
[400256280,1767231043816,-500.0,0.00022465,2]
[400256281,1767231043826,-1441.19,0.00022465,2]
[400256282,1767231043835,-924.08,0.00022465,2]
[400256283,1767231043845,-726.32,0.00022465,2]
[400256284,1767231043855,-4710.53,0.00022465,2]
[400256285,1767231043864,-500.0,0.00022465,2]
[400256286,1767231043873,-5241.9,0.00022465,2]
[400256287,1767231043882,-500.0,0.00022465,2]
[400256288,1767231043892,-639.79,0.00022465,2]
[400256289,1767231043901,-500.0,0.00022465,2]
[400256290,1767231043910,-1458.32,0.00022465,2]
[400256291,1767231043920,-500.0,0.00022465,2]
[400256292,1767231043930,-759.62,0.00022465,2]
[400256293,1767231043939,-500.0,0.00022465,2]
[400256294,1767231043948,-1163.27,0.00022465,2]
[400256295,1767231043958,-500.0,0.00022465,2]
[400256296,1767231043967,-500.0,0.00022465,2]
[400256297,1767231043976,-500.0,0.00022465,2]
[400256298,1767231043986,-663.93287602,0.00022531,2]
[400256299,1767231043996,-433.0,0.00022535,2]
[400256300,1767231044005,-154.99296687,0.0002255,7]
[400256301,1767231044015,-432.0,0.0002259,2]
[400256302,1767231044024,-432.0,0.0002259,2]
[400256303,1767231044033,-651.83872661,0.00022613,2]
[400256304,1767231044042,-193.8,0.00022624,2]
[400256305,1767231044052,-432.0,0.00022642,2]
[400256306,1767231044062,-9640.39,0.00022653,2]
[400256307,1767231044071,-1000.0,0.000227,6]
[400256308,1767231044081,-800.0,0.00022705,2]
[400256309,1767231044090,-500.0,0.00022739,2]
[400256310,1767231044100,-198.0051362,0.00022739,2]
[400256311,1767231044110,-500.0,0.00022739,2]
[400256312,1767231044119,-500.0,0.00022739,2]
[400256313,1767231044130,-722.66,0.00022739,2]
[400256315,1767231044140,-329.68974434,0.00022739,2]
[400256316,1767231044150,-500.0,0.00022739,2]
[400256317,1767231044159,-151.0,0.00022739,2]
[400256318,1767231044169,-151.0,0.00022739,2]
[400256319,1767231044179,-151.0,0.00022739,2]
[400256320,1767231044189,-532.940518,0.00022739,2]
[400256321,1767231044198,-532.940518,0.00022739,2]
[400256322,1767231044210,-532.940518,0.00022739,2]
[400256323,1767231044228,-532.940518,0.00022739,2]
[400256324,1767231044239,-934.93,0.00022739,2]
[400256325,1767231044248,-999.99999997,0.00022739,2]
[400256326,1767231044258,-500.0,0.00022739,2]
[400256327,1767231044267,-500.0,0.00022739,2]
[400256328,1767231044277,-252.17938315,0.00022739,2]
[400256329,1767231044286,-453.92288966,0.00022739,2]
[400256330,1767231044295,-806.97402607,0.00022739,2]
[400256331,1767231044304,-500.0,0.00022739,2]
[400256332,1767231044315,-1441.19,0.00022739,2]
[400256333,1767231044326,-924.08,0.00022739,2]
[400256334,1767231044336,-726.32,0.00022739,2]
[400256335,1767231044345,-4710.53,0.00022739,2]
[400256336,1767231044354,-500.0,0.00022739,2]
[400256337,1767231044572,-5241.9,0.00022739,2]
[400256338,1767231044582,-500.0,0.00022739,2]
[400256339,1767231044592,-152.73164305,0.00022739,2]
[400256340,1767231044601,-639.79,0.00022739,2]
[400256341,1767231044612,-500.0,0.00022739,2]
[400256342,1767231044622,-1458.32,0.00022739,2]
[400256343,1767231044632,-500.0,0.00022739,2]
[400256344,1767231044641,-759.62,0.00022739,2]
[400256345,1767231044650,-500.0,0.00022739,2]
[400256346,1767231044659,-1163.27,0.00022739,2]
[400256347,1767231044669,-502.05081756,0.00022739,2]
[400256348,1767231044678,-500.0,0.00022739,2]
[400256349,1767231044687,-500.0,0.00022739,2]
[400256350,1767231044696,-3158.113658,0.00022754,2]
[400256351,1767231044705,-5448.1370016,0.00022754,2]
[400256352,1767231044714,-258.237707,0.00022754,2]
[400256353,1767231044723,-904.8152816,0.00022754,2]
[400256354,1767231044732,-1000.0,0.0002277,2]
[400256355,1767231044741,-1000.0,0.0002277,2]
[400256356,1767231044750,-1000.0,0.0002277,2]
[400256357,1767231044759,-257.68397498,0.0002277,2]
[400256358,1767231044769,-1175246.64143003,0.0002277,2]
[400256359,1767231044781,-4892.37058041,0.0002277,2]
[400256360,1767231044793,-4175.38100511,0.0002277,2]
[400256361,1767231044804,-3088.29956927,0.0002277,2]
[400256362,1767231044816,-1362.92342815,0.0002277,2]
[400256363,1767231044867,-27034.38197517,0.0002277,2]
[400256364,1767231044953,-187.48770083,0.0002277,2]
[400256365,1767231044964,-872.29,0.0002277,2]
[400256374,1767231046655,-166.47434687,0.0001344,2]
[400256375,1767231046665,-166.47434687,0.00014897,2]
[400256376,1767231046675,-166.64082122,0.00016354,2]
[400256377,1767231046684,-3979.62367318,0.0002277,2]
[400256403,1767231102761,156.022,0.00011452,2]
[400256461,1767231184227,195.1,0.00028767,120]
[400256464,1767231186459,705.0,0.00028767,120]
[400256525,1767231397415,1000.0,0.0001,2]
[400256528,1767231409468,1000.0,0.0001,3]
[400256535,1767231479358,261.95,8.238e-05,2]
[400256536,1767231479660,261.95,8.238e-05,2]
[400256537,1767231479939,261.93,8.238e-05,2]
[400256563,1767231955117,-337.44844908,0.00010959,2]
[400256565,1767232027074,-661.55155092,0.00010959,2]
[400256566,1767232027094,-205.43118685,0.00010959,2]
[400256567,1767232027113,-106.30271917,0.00010959,2]
[400256568,1767232027139,-467.69728083,0.00010959,2]
[400256569,1767232027157,-4495.1482399,0.00011237,2]
[400256570,1767232027177,-300.0,0.00011677,2]
[400256571,1767232027199,-500.0,0.00011678,2]
[400256572,1767232027221,-500.0,0.00011678,2]
[400256573,1767232027242,-500.0,0.00011678,2]
[400256574,1767232027263,-500.0,0.00011678,2]
[400256575,1767232027284,-165.88043739,0.00011678,2]
[400256576,1767232027305,-500.0,0.00011678,2]
[400256577,1767232027326,-500.0,0.00011678,2]
[400256578,1767232027347,-500.0,0.00011678,2]
[400256579,1767232027370,-190.43991557,0.00011678,2]
[400256580,1767232027391,-500.0,0.00011678,2]
[400256581,1767232027412,-136.92582265,0.00011678,2]
[400256584,1767232151098,-300.0,0.00011578,2]
[400256585,1767232151120,-50000.0,0.00011579,2]
[400256586,1767232151140,-300.0,0.00011579,2]
[400256587,1767232151159,-1200.0,0.00011579,2]
[400256588,1767232151181,-500.0,0.00011579,2]
[400256589,1767232151201,-500.0,0.00011579,2]
[400256590,1767232151221,-500.0,0.00011579,2]
[400256591,1767232151242,-500.0,0.00011579,2]
[400256592,1767232151264,-500.0,0.00011579,2]
[400256593,1767232151284,-500.0,0.00011579,2]
[400256594,1767232151303,-593.56717237,0.00011579,2]
[400256595,1767232151324,-500.0,0.00011579,2]
[400256596,1767232151344,-500.0,0.00011579,2]
[400256597,1767232151365,-479.06933375,0.00011579,2]
[400256598,1767232151385,-500.0,0.00011579,2]
[400256599,1767232151406,-412.73454659,0.00011579,2]
[400256600,1767232172147,-228.57404865,0.00011578,2]
[400256601,1767232172169,-87.26545341,0.00011579,2]
[400256602,1767232172190,-500.0,0.00011579,2]
[400256603,1767232172212,-500.0,0.00011579,2]
[400256604,1767232172235,-500.0,0.00011579,2]
[400256605,1767232172256,-500.0,0.00011579,2]
[400256606,1767232172276,-500.0,0.00011579,2]
[400256607,1767232172299,-500.0,0.00011579,2]
[400256608,1767232172320,-559.54236749,0.00011579,2]
[400256609,1767232172341,-500.0,0.00011579,2]
[400256610,1767232172362,-500.0,0.00011579,2]
[400256611,1767232172383,-500.0,0.00011579,2]
[400256612,1767232172403,-500.0,0.00011579,2]
[400256613,1767232172424,-500.0,0.00011579,2]
[400256614,1767232172445,-500.0,0.00011579,2]
[400256615,1767232172467,-500.0,0.00011579,2]
[400256616,1767232172488,-616.58804374,0.00011579,2]
[400256617,1767232172510,-500.0,0.00011579,2]
[400256618,1767232172530,-500.0,0.00011579,2]
[400256619,1767232172551,-500.0,0.00011579,2]
[400256620,1767232172571,-500.0,0.00011579,2]
[400256621,1767232172592,-500.0,0.00011579,2]
[400256622,1767232172612,-500.0,0.00011579,2]
[400256623,1767232172634,-500.0,0.00011579,2]
[400256624,1767232172654,-500.0,0.00011579,2]
[400256625,1767232172674,-500.0,0.00011579,2]
[400256626,1767232172696,-500.0,0.00011579,2]
[400256627,1767232172716,-500.0,0.00011579,2]
[400256628,1767232172738,-500.0,0.00011579,2]
[400256629,1767232172759,-500.0,0.00011579,2]
[400256630,1767232172778,-500.0,0.00011579,2]
[400256631,1767232172892,-500.0,0.00011579,2]
[400256632,1767232172945,-500.0,0.00011579,2]
[400256633,1767232172966,-500.0,0.00011579,2]
[400256634,1767232172986,-500.0,0.00011579,2]
[400256635,1767232173006,-500.0,0.00011579,2]
[400256636,1767232173026,-500.0,0.00011579,2]
[400256637,1767232173046,-500.0,0.00011579,2]
[400256638,1767232173067,-500.0,0.00011579,2]
[400256639,1767232173090,-500.0,0.00011579,2]
[400256640,1767232173111,-500.0,0.00011579,2]
[400256641,1767232173134,-500.0,0.00011579,2]
[400256642,1767232173155,-500.0,0.00011579,2]
[400256643,1767232173176,-500.0,0.00011579,2]
[400256644,1767232173201,-500.0,0.00011579,2]
[400256645,1767232173222,-500.0,0.00011579,2]
[400256646,1767232173242,-500.0,0.00011579,2]
[400256647,1767232173262,-500.0,0.00011579,2]
[400256648,1767232173284,-500.0,0.00011579,2]
[400256649,1767232173304,-500.0,0.00011579,2]
[400256650,1767232173326,-500.0,0.00011579,2]
[400256651,1767232173347,-500.0,0.00011579,2]
[400256652,1767232173368,-500.0,0.00011579,2]
[400256653,1767232173389,-500.0,0.00011579,2]
[400256654,1767232173410,-500.0,0.00011579,2]
[400256655,1767232173435,-500.0,0.00011579,2]
[400256656,1767232173457,-500.0,0.00011579,2]
[400256657,1767232173478,-650.0,0.00011579,2]
[400256658,1767232173498,-500.0,0.00011579,2]
[400256659,1767232173520,-500.0,0.00011579,2]
[400256660,1767232173541,-500.0,0.00011579,2]
[400256661,1767232173561,-500.0,0.00011579,2]
[400256662,1767232173583,-500.0,0.00011579,2]
[400256663,1767232173604,-500.0,0.00011579,2]
[400256664,1767232173625,-500.0,0.00011579,2]
[400256665,1767232173647,-500.0,0.00011579,2]
[400256666,1767232173668,-500.0,0.00011579,2]
[400256667,1767232173688,-500.0,0.00011579,2]
[400256668,1767232173709,-500.0,0.00011579,2]
[400256669,1767232173731,-500.0,0.00011579,2]
[400256670,1767232173751,-500.0,0.00011579,2]
[400256671,1767232173772,-500.0,0.00011579,2]
[400256672,1767232173793,-500.0,0.00011579,2]
[400256673,1767232173814,-500.0,0.00011579,2]
[400256674,1767232173835,-465.07598772,0.00011579,2]
[400256675,1767232173860,-500.0,0.00011579,2]
[400256676,1767232173879,-500.0,0.00011579,2]
[400256677,1767232173927,-500.0,0.00011579,2]
[400256678,1767232173953,-3004.4050842,0.0001158,2]
[400256716,1767232232405,-289.0,0.00011579,2]
[400256718,1767232232415,-300.0,0.00011579,2]
[400256720,1767232232424,-416.0,0.00011579,2]
[400256724,1767232232458,-167.0,0.00011579,2]
[400256727,1767232232468,-30498.69048313,0.0001158,2]
[400256756,1767232238526,-966496.90443267,0.0001158,2]
[400256757,1767232238537,-201.32256311,0.00011629,2]
[400256758,1767232238547,-156.022,0.0001168,2]
[400256759,1767232238557,-3479.73079745,0.00011711,2]
[400256760,1767232238567,-166.29966375,0.00011811,2]
[400256761,1767232238577,-850.38,0.00012391,2]
[400256762,1767232238586,-385.09498451,0.00012603,2]
[400256763,1767232238595,-420.0,0.00012715,2]
[400256764,1767232238605,-610.0,0.00012717,2]
[400256765,1767232238615,-302.0,0.00012717,2]
[400256766,1767232238626,-500.0,0.00013273,2]
[400256767,1767232238635,-500.0,0.00013273,2]
[400256768,1767232238645,-500.0,0.00013273,2]
[400256769,1767232238655,-172.22882441,0.00013273,2]
[400256770,1767232238664,-510.90139551,0.00013273,2]
[400256771,1767232238673,-500.0,0.00013273,2]
[400256772,1767232238682,-497.57485249,0.00013273,2]
[400256773,1767232238692,-500.0,0.00013273,2]
[400256774,1767232238702,-500.0,0.00013273,2]
[400256775,1767232238711,-500.0,0.00013273,2]
[400256776,1767232238720,-500.0,0.00013273,2]
[400256777,1767232238730,-500.0,0.00013273,2]
[400256778,1767232238739,-500.0,0.00013273,2]
[400256779,1767232238749,-500.0,0.00013273,2]
[400256780,1767232238758,-500.0,0.00013273,2]
[400256781,1767232238767,-500.0,0.00013273,2]
[400256782,1767232238777,-501.13693143,0.00013273,2]
[400256783,1767232238786,-587.75892245,0.00013273,2]
[400256784,1767232238796,-501.74485586,0.00013273,2]
[400256785,1767232238805,-502.75329392,0.00013273,2]
[400256786,1767232238815,-500.0,0.00013273,2]
[400256787,1767232238825,-500.0,0.00013273,2]
[400256788,1767232238834,-500.0,0.00013273,2]
[400256789,1767232238844,-500.0,0.00013273,2]
[400256790,1767232238854,-500.0,0.00013273,2]
[400256791,1767232238864,-500.0,0.00013273,2]
[400256792,1767232238874,-500.0,0.00013273,2]
[400256793,1767232238883,-215.55127234,0.00013273,2]
[400256794,1767232238894,-502.11492454,0.00013273,2]
[400256795,1767232238903,-500.0,0.00013273,2]
[400256796,1767232238914,-500.0,0.00013273,2]
[400256797,1767232238923,-385.09498451,0.00013345,2]
[400256798,1767232238932,-1700.76,0.00013518,2]
[400256799,1767232238943,-10000.0,0.0001354,2]
[400256800,1767232238958,-237.56062447,0.00013629,2]
[400256801,1767232238968,-300.0,0.00013673,2]
[400256802,1767232238978,-500.0,0.00013698,2]
[400256803,1767232238988,-530.23109502,0.00013698,2]
[400256804,1767232238998,-634.29682706,0.00013698,2]
[400256805,1767232239008,-500.0,0.00013698,2]
[400256806,1767232239018,-500.0,0.00013698,2]
[400256807,1767232239028,-500.0,0.00013698,2]
[400256808,1767232239038,-500.0,0.00013698,2]
[400256809,1767232239048,-500.0,0.00013698,2]
[400256810,1767232239057,-500.0,0.00013698,2]
[400256811,1767232239067,-500.0,0.00013698,2]
[400256812,1767232239076,-518.1178599,0.00013698,2]
[400256813,1767232239086,-500.0,0.00013698,2]
[400256814,1767232239096,-500.0,0.00013698,2]
[400256815,1767232239105,-500.0,0.00013698,2]
[400256816,1767232239114,-500.0,0.00013698,2]
[400256817,1767232239123,-500.0,0.00013698,2]
[400256818,1767232239134,-500.0,0.00013698,2]
[400256819,1767232239143,-294.49990003,0.00013698,2]
[400256820,1767232239152,-582.30404194,0.00013698,2]
[400256821,1767232239162,-500.0,0.00013698,2]
[400256822,1767232239171,-500.0,0.00013698,2]
[400256823,1767232239181,-501.34554409,0.00013698,2]
[400256824,1767232239190,-500.0,0.00013698,2]
[400256825,1767232239199,-500.0,0.00013698,2]
[400256826,1767232239208,-500.0,0.00013698,2]
[400256827,1767232239218,-500.0,0.00013698,2]
[400256828,1767232239227,-500.0,0.00013698,2]
[400256829,1767232239236,-500.0,0.00013698,2]
[400256830,1767232239245,-500.0,0.00013698,2]
[400256831,1767232239255,-500.0,0.00013698,2]
[400256832,1767232239264,-500.0,0.00013698,2]
[400256833,1767232239273,-500.0,0.00013698,2]
[400256834,1767232239283,-500.0,0.00013698,2]
[400256835,1767232239293,-500.0,0.00013698,2]
[400256836,1767232239302,-500.0,0.00013698,2]
[400256837,1767232239311,-500.0,0.00013698,2]
[400256838,1767232239321,-500.0,0.00013698,2]
[400256839,1767232239330,-500.0,0.00013698,2]
[400256840,1767232239339,-500.0,0.00013698,2]
[400256841,1767232239349,-500.0,0.00013698,2]
[400256842,1767232239358,-431.46701577,0.00013698,2]
[400256843,1767232239368,-2943.2889994,0.00013699,2]
[400256844,1767232239377,-15492.5924877,0.00013699,2]
[400256845,1767232239387,-1000.0,0.00013699,2]
[400256846,1767232239396,-457.22674749,0.00013699,2]
[400256847,1767232239405,-501.33800671,0.00013699,2]
[400256848,1767232239415,-251.00272433,0.00013699,2]
[400256849,1767232239424,-502.29850765,0.00013699,2]
[400256850,1767232239434,-500.0,0.00013699,2]
[400256851,1767232239444,-500.0,0.00013699,2]
[400256852,1767232239453,-501.88622503,0.00013699,2]
[400256853,1767232239463,-500.0,0.00013699,2]
[400256854,1767232239473,-500.0,0.00013699,2]
[400256855,1767232239482,-502.44886287,0.00013699,2]
[400256856,1767232239491,-500.0,0.00013699,2]
[400256857,1767232239501,-150.0,0.00013699,2]
[400256858,1767232239510,-501.71162853,0.00013699,2]
[400256859,1767232239520,-500.0,0.00013699,2]
[400256860,1767232239529,-504.76855077,0.00013699,2]
[400256861,1767232239539,-500.0,0.00013699,2]
[400256862,1767232239549,-500.0,0.00013699,2]
[400256863,1767232239558,-500.41619703,0.00013699,2]
[400256864,1767232239567,-500.0,0.00013699,2]
[400256865,1767232239576,-159.44586033,0.00013699,2]
[400256866,1767232239586,-501.19324627,0.00013699,2]
[400256867,1767232239595,-502.11785736,0.00013699,2]
[400256868,1767232239605,-500.13588994,0.00013699,2]
[400256869,1767232239614,-524.09643876,0.00013699,2]
[400256870,1767232239624,-500.0,0.00013699,2]
[400256871,1767232239633,-166.19145525,0.00013699,2]
[400256872,1767232239642,-173.39877049,0.00013699,2]
[400256873,1767232239652,-501.04622442,0.00013699,2]
[400256874,1767232239661,-500.41151403,0.00013699,2]
[400256875,1767232239670,-500.85679004,0.00013699,2]
[400256876,1767232239679,-500.0,0.00013699,2]
[400256877,1767232239688,-500.0,0.00013699,2]
[400256878,1767232239698,-518.86875969,0.00013699,2]
[400256879,1767232239707,-500.41688531,0.00013699,2]
[400256880,1767232239717,-636.81503696,0.00013699,2]
[400256881,1767232239726,-223.82380689,0.00013699,2]
[400256882,1767232239735,-502.28981884,0.00013699,2]
[400256883,1767232239749,-500.61963752,0.00013699,2]
[400256884,1767232239758,-455.98824262,0.00013699,2]
[400256885,1767232239768,-501.08925987,0.00013699,2]
[400256886,1767232239777,-501.99402388,0.00013699,2]
[400256887,1767232239786,-599.57930463,0.00013699,2]
[400256888,1767232239795,-500.0,0.00013699,2]
[400256889,1767232239804,-500.0,0.00013699,2]
[400256890,1767232239815,-500.0,0.00013699,2]
[400256891,1767232239825,-500.0,0.00013699,2]
[400256892,1767232239834,-500.0,0.00013699,2]
[400256893,1767232239844,-500.0,0.00013699,2]
[400256894,1767232239854,-500.0,0.00013699,2]
[400256895,1767232239863,-500.0,0.00013699,2]
[400256896,1767232239873,-514.48370716,0.00013699,2]
[400256897,1767232239882,-500.0,0.00013699,2]
[400256898,1767232239892,-507.85472155,0.00013699,2]
[400256899,1767232239901,-523.75318746,0.00013699,2]
[400256900,1767232239910,-500.0,0.00013699,2]
[400256901,1767232239920,-500.0,0.00013699,2]
[400256902,1767232239930,-268.44425948,0.00013699,2]
[400256903,1767232239940,-527.43501459,0.00013821,2]
[400256904,1767232239952,-1000.0,0.00013821,2]
[400256905,1767232239961,-501.63273171,0.00013821,2]
[400256906,1767232239971,-507.02514153,0.00013821,2]
[400256907,1767232239980,-1000.0,0.00013821,2]
[400256908,1767232239990,-1001.18082375,0.00013821,2]
[400256909,1767232239999,-1041.08539316,0.00013821,2]
[400256910,1767232240009,-592.72633843,0.00013821,2]
[400256911,1767232240019,-1000.0,0.00013821,2]
[400256912,1767232240028,-1000.0,0.00013821,2]
[400256913,1767232240038,-502.4239539,0.00013821,2]
[400256914,1767232240047,-1000.0,0.00013821,2]
[400256915,1767232240057,-499.60347753,0.00013821,2]
[400256916,1767232240066,-1000.0,0.00013821,2]
[400256917,1767232240075,-502.12447258,0.00013821,2]
[400256918,1767232240085,-504.66713546,0.00013821,2]
[400256919,1767232240095,-1001.86225518,0.00013821,2]
[400256920,1767232240104,-1000.0,0.00013821,2]
[400256921,1767232240113,-1000.0,0.00013821,2]
[400256922,1767232240121,-1000.0,0.00013821,2]
[400256924,1767232240131,-501.2387356,0.00013821,2]
[400256925,1767232240139,-376.32492705,0.00013821,2]
[400256927,1767232240149,-587.0,0.00013965,2]
[400256928,1767232240158,-385.09498451,0.00014087,2]
[400256929,1767232240168,-1833.62,0.00014147,2]
[400256930,1767232240177,-600.0,0.00014221,2]
[400256931,1767232240187,-540.87418443,0.00014247,2]
[400256932,1767232240197,-1000.0,0.00014247,2]
[400256933,1767232240206,-500.0,0.00014247,2]
[400256934,1767232240215,-1000.0,0.00014247,2]
[400256935,1767232240224,-1000.0,0.00014247,2]
[400256936,1767232240233,-250.0,0.00014247,2]
[400256937,1767232240242,-1001.18575005,0.00014247,2]
[400256938,1767232240252,-1001.95418441,0.00014247,2]
[400256939,1767232240262,-1082.59288447,0.00014247,2]
[400256940,1767232240272,-1000.0,0.00014247,2]
[400256941,1767232240281,-981.71963328,0.00014247,2]
[400256942,1767232240291,-1001.2918638,0.00014247,2]
[400256943,1767232240300,-1000.0,0.00014247,2]
[400256944,1767232240310,-1000.0,0.00014247,2]
[400256945,1767232240319,-633.76515687,0.00014247,2]
[400256946,1767232240328,-1000.0,0.00014247,2]
[400256947,1767232240337,-1002.15696691,0.00014247,2]
[400256948,1767232240347,-1000.0,0.00014247,2]
[400256949,1767232240356,-1000.0,0.00014247,2]
[400256951,1767232240366,-160.44722878,0.00014247,2]
[400256952,1767232240375,-1000.0,0.00014247,2]
[400256953,1767232240385,-192.65004867,0.00014247,2]
[400256954,1767232240394,-508.35491753,0.00014247,2]
[400256955,1767232240403,-1501.39987686,0.00014368,2]
[400256956,1767232240413,-151.52027531,0.00014368,2]
[400256957,1767232240423,-1500.0,0.00014368,2]
[400256958,1767232240432,-1500.0,0.00014368,2]
[400256959,1767232240442,-1629.14531311,0.00014368,2]
[400256960,1767232240452,-530.40558362,0.00014368,2]
[400256961,1767232240462,-502.09210959,0.00014368,2]
[400256962,1767232240472,-1315.89394303,0.00014368,2]